[Event "Reykjavik Open 2022"]
[Site "Reykjavik"]
[Date "2022.04.07"]
[Round "3.46"]
[White "Player, Edmund C"]
[Black "Smith, Lynda"]
[Result "1-0"]
[ECO "B38"]
[WhiteElo "2196"]
[BlackElo "1778"]
[Annotator "TA"]
[PlyCount "63"]
[EventDate "2022.04.06"]
[EventCountry "ISL"]
[SourceTitle "playchess.com"]
[Source "ChessBase"]
[SourceQuality "1"]
[TimeControl "40/5400+30:1800+30"]

{[%evp 19,63,58,83,42,54,46,55,43,59,62,59,44,63,55,81,86,113,104,105,102,106,80,104,103,105,106,93,95,130,50,95,0,0,0,0,0,123,112,182,182,231,207,508,449,517,516]} 1. e4 {[%emt 0:00:02]} c5 {[%emt 0:00:04]} 2. Nf3 {[%emt 0:00:04]} g6 {[%emt 0:00:05]} 3. c4 {[%emt 0:00:23]} Bg7 {[%emt 0:01:27]} 4. d4 {[%emt 0:00:40]} cxd4 {[%emt 0:00:19]} 5. Nxd4 {[%emt 0:00:03]} Nc6 {[%emt 0:00:24]} 6. Be3 {[%emt 0:00:22]} Nf6 {[%emt 0:00:50]} 7. Nc3 {[%emt 0:01:15]} d6 {[%emt 0:00:27]} 8. Be2 {[%emt 0:00:30]} O-O {[%emt 0:00:27]} 9. O-O {[%emt 0:01:01]} Nxd4 {[%emt 0:00:38]} 10. Bxd4 {[%emt 0:00:12]} Be6 {[%emt 0:00:33]} 11. Re1 {[%emt 0:03:07] B38: Sicilian: Maroczy Bind with 5...Bg7 and 7...0-0.} Nd7 {[%emt 0:01:40] [#]} 12. b3 $146 {[%emt 0:09:09]} ({Predecessor:} 12. Bxg7 Kxg7 13. Qd4+ f6 14. f4 Qa5 15. Nd5 Bxd5 16. exd5 Qb6 17. Qxb6 Nxb6 18. Bf1 Kf7 {1-0 (41) Popov,V (2523)-Votava,J (2497) Pardubice 1999}) 12... Qa5 {[%emt 0:04:22]} 13. Bf1 {[%emt 0:06:58] White is slightly better.} Bxd4 {[%emt 0:03:33]} 14. Qxd4 {[%emt 0:00:36]} Qc5 {[%emt 0:01:43]} 15. Qd2 {[%emt 0:01:21]} Kg7 {[%emt 0:01:57]} 16. Nd5 {[%emt 0:03:09]} Bxd5 {[%emt 0:00:40]} 17. exd5 {[%emt 0:00:13]} ({But not} 17. cxd5 Rac8 $14) 17... Rae8 {[%emt 0:01:55]} 18. Re3 {[%emt 0:01:20]} Nf6 {[%emt 0:01:54]} 19. Rae1 {[%emt 0:00:39]} Qc7 {[%emt 0:05:31]} 20. Rh3 {[%emt 0:10:29]} h5 {[%emt 0:04:45]} 21. Rhe3 {[%emt 0:07:51] &Bianco is more active.} b6 {[%emt 0:02:19]} 22. Bd3 {[%emt 0:02:27]} Qd7 {[%emt 0:02:30]} 23. Qe2 {[%emt 0:00:58]} Ng8 {[%emt 0:01:55]} 24. Rg3 {[%emt 0:04:29]} (24. f4 $16) 24... Nf6 {[%emt 0:01:31]} 25. f4 {[%emt 0:04:54]} ({Better is} 25. h3 $16) 25... e6 $11 {[%emt 0:04:13]} 26. dxe6 {[%emt 0:23:33]} Rxe6 {[%emt 0:00:26]} 27. Rxg6+ {[%emt 0:09:46]} fxg6 {[%emt 0:01:56]} (27... Kh8 $1 $11 28. Rxf6 (28. Rh6+ Kg7 $11) 28... Rxe2 29. Rxe2 Kg7) 28. Qxe6 $16 {[%emt 0:00:09]} Rf7 {[%emt 0:02:26]} (28... Qc6 $16 29. Qe7+ Rf7) 29. Qe3 $36 {[%emt 0:00:44][%cal Of4f5][%mdl 2048] Keeping Black busy.} Ng4 {[%emt 0:01:08]} (29... Rf8 $142 30. Qg3 Qg4 31. Qxg4 Nxg4) 30. Qd4+ {[%emt 0:00:36]} Kh7 $2 {[%emt 0:00:43] [#]} (30... Rf6 {is more resistant.} 31. Be4 (31. h3 Nh6 $18) 31... Nh6) 31. Qd5 {[%emt 0:01:06]} Nf6 {[%emt 0:05:04]} 32. Qg5 {[%emt 0:00:15] Weighted Error Value: White=0.16 (very precise) /Black=0.43} 1-0

[Event "Reykjavik Open 2022"]
[Site "Reykjavik"]
[Date "2022.04.07"]
[Round "3.47"]
[White "Sigamoney, Cyril S"]
[Black "Popvasilev, Kaloyan"]
[Result "1/2-1/2"]
[ECO "A46"]
[WhiteElo "1960"]
[BlackElo "2191"]
[Annotator "RC"]
[PlyCount "49"]
[EventDate "2022.04.06"]
[EventCountry "ISL"]
[SourceTitle "playchess.com"]
[Source "ChessBase"]
[SourceQuality "1"]
[TimeControl "40/5400+30:1800+30"]

1. d4 {[%emt 0:00:16]} Nf6 {[%emt 0:00:11]} 2. Bg5 {[%emt 0:00:24]} e6 {[%emt 0:00:45]} 3. e3 {[%emt 0:04:05]} c5 {[%emt 0:04:25]} 4. Bxf6 {[%emt 0:03:43]} Qxf6 {[%emt 0:00:17]} 5. Nf3 {[%emt 0:00:05]} Nc6 {[%emt 0:08:22]} 6. c4 {[%emt 0:05:45]} cxd4 {[%emt 0:06:07]} 7. exd4 {[%emt 0:00:10]} Bb4+ {[%emt 0:03:11]} 8. Nc3 {[%emt 0:00:19]} O-O {[%emt 0:02:22]} 9. Be2 {[%emt 0:00:06]} Bxc3+ {[%emt 0:05:20]} 10. bxc3 {[%emt 0:00:14]} d6 {[%emt 0:00:13]} 11. O-O {[%emt 0:00:19]} e5 {[%emt 0:00:40]} 12. d5 {[%emt 0:45:08]} Na5 {[%emt 0:06:56]} 13. Nd2 {[%emt 0:00:12]} Qg6 {[%emt 0:05:52]} 14. Kh1 {[%emt 0:03:02]} Bf5 {[%emt 0:05:08]} 15. f4 {[%emt 0:08:11]} Bc2 {[%emt 0:10:58]} 16. Qc1 {[%emt 0:02:14]} Rae8 {[%emt 0:03:20]} 17. fxe5 {[%emt 0:13:55]} Rxe5 {[%emt 0:00:29]} 18. Rf2 {[%emt 0:02:23]} Bd3 {[%emt 0:17:37]} 19. Qf1 {[%emt 0:02:28]} Rxe2 {[%emt 0:00:57]} 20. Rxe2 {[%emt 0:00:17]} Qg4 {[%emt 0:05:05]} 21. Rae1 {[%emt 0:00:27]} Nxc4 {[%emt 0:02:39]} 22. Nxc4 {[%emt 0:03:04]} Qxc4 {[%emt 0:00:39]} 23. Qf3 {[%emt 0:00:06]} Bxe2 {[%emt 0:00:20]} 24. Rxe2 {[%emt 0:00:03]} g6 {[%emt 0:03:28]} 25. h3 {[%emt 0:00:06]} 1/2-1/2

[Event "Reykjavik Open 2022"]
[Site "Reykjavik"]
[Date "2022.04.07"]
[Round "3.48"]
[White "Baecker, Niko"]
[Black "Romanishin, Oleg M"]
[Result "0-1"]
[ECO "E48"]
[WhiteElo "1843"]
[BlackElo "2415"]
[Annotator "TA"]
[PlyCount "56"]
[EventDate "2022.04.06"]
[EventCountry "ISL"]
[SourceTitle "playchess.com"]
[Source "ChessBase"]
[SourceQuality "1"]
[TimeControl "40/5400+30:1800+30"]

{[%evp 20,56,8,0,-4,-7,0,-16,-10,-46,-14,-15,-12,-15,-7,-23,-24,-25,-20,-12,-21,-291,-274,-294,-287,-289,-277,-273,-279,-311,-308,-405,-410,-397,-394,-842,-828,-881,-827]} 1. d4 {[%emt 0:00:11]} Nf6 {[%emt 0:00:05]} 2. c4 {[%emt 0:00:10]} e6 {[%emt 0:00:05]} 3. Nc3 {[%emt 0:00:09]} Bb4 {[%emt 0:00:06]} 4. e3 {[%emt 0:00:10]} O-O {[%emt 0:01:01]} 5. Bd3 {[%emt 0:00:29]} c5 {[%emt 0:02:41]} 6. Nge2 {[%emt 0:02:32]} d5 {[%emt 0:01:22]} 7. O-O {[%emt 0:04:11]} cxd4 {[%emt 0:04:49]} 8. exd4 {[%emt 0:00:16]} dxc4 {[%emt 0:00:54]} 9. Bxc4 {[%emt 0:00:16]} Nbd7 {[%emt 0:01:22][%cal Bb8d7,Bd7b6,Bb6d5][%mdl 32]} 10. a3 {[%emt 0:05:51]} Be7 {[%emt 0:03:13]} 11. Bf4 {[%emt 0:03:27]} Nb6 {[%emt 0:00:53] E48: Nimzo-Indian: Rubinstein: 5 Bd3 d5 including 6 Ne2, but excluding 6 a3.} 12. Ba2 {[%emt 0:00:22]} Bd7 {[%emt 0:07:13]} 13. Rc1 {[%emt 0:01:17]} Bc6 {[%emt 0:00:41] [#] The position is equal.} 14. b4 $146 {[%emt 0:05:05]} ({Predecessor:} 14. Bb1 Nbd5 15. Bg3 Qd7 16. Qd3 g6 17. Rfd1 Rfd8 18. h3 Bf8 19. Nxd5 Nxd5 20. Bh4 {0-1 (35) Luht,V-Krupenski,J (2299) Viljandi 2013}) 14... a6 {[%emt 0:05:40]} 15. Qd3 {[%emt 0:01:59]} Nbd5 {[%emt 0:15:00]} 16. Be5 {[%emt 0:03:57]} Rc8 {[%emt 0:01:18]} 17. Bb1 {[%emt 0:02:37] [#] Hoping for Nxd5.} g6 {[%emt 0:03:48]} 18. Rfd1 {[%emt 0:12:49]} Nxc3 19. Nxc3 {[%emt 0:00:32]} Nd5 {[%emt 0:09:08]} 20. Ne4 $2 {[%emt 0:05:15][%mdl 8192] White does not recover from this.} (20. Ba2 $11 {and White stays safe.}) 20... f6 $19 {[%emt 0:00:33][%cal Bf7f6,Bf6f5,Bf5f4][%mdl 32]} 21. Bg3 {[%emt 0:00:23]} f5 {[%emt 0:00:21]} 22. Nc5 {[%emt 0:06:26]} Bxc5 {[%emt 0:01:03]} ({Stronger than} 22... Bb5 23. Qd2 Bxc5 24. Rxc5 $15) 23. dxc5 {[%emt 0:03:58]} f4 {[%emt 0:00:22]} 24. Qe4 {[%emt 0:00:21]} Qf6 {[%emt 0:10:56]} ({Don't go for} 24... fxg3 $2 25. Qxe6+ Kg7 26. Qe5+ Qf6 27. Qxf6+ Nxf6 28. hxg3 $19) 25. Bh4 {[%emt 0:03:55]} Qxh4 {[%emt 0:00:07]} 26. Qxe6+ {[%emt 0:00:06]} Kh8 {[%emt 0:00:07] [#] ...Rce8 is the strong threat.} 27. Rxd5 $2 {[%emt 0:00:24]} (27. Qe5+ Nf6 28. Bd3) 27... Rce8 {[%emt 0:00:20]} 28. Qd6 {[%emt 0:06:03]} Rf6 {[%emt 0:00:14] Weighted Error Value: White=0.69/Black=0.03 (flawless)} 0-1

[Event "Reykjavik Open 2022"]
[Site "Reykjavik"]
[Date "2022.04.07"]
[Round "3.49"]
[White "Schultze, Joerg-Martin"]
[Black "Thorhallsson, Simon"]
[Result "1-0"]
[ECO "E73"]
[WhiteElo "1932"]
[BlackElo "2245"]
[Annotator "TA"]
[PlyCount "75"]
[EventDate "2022.04.06"]
[EventCountry "ISL"]
[SourceTitle "playchess.com"]
[Source "ChessBase"]
[SourceQuality "1"]
[TimeControl "40/5400+30:1800+30"]

{[%evp 14,75,75,61,74,54,58,-38,-37,-34,-44,-49,-42,-42,-41,-80,0,-85,-78,-62,-71,-61,-69,-58,-71,-87,-95,-140,-14,-10,0,0,0,0,110,96,93,8,7,0,4,30,525,506,543,545,530,529,785,784,754,754,747,718,1367,1314,1053,915,1240,1475,1390,1348,906,762]} 1. d4 {[%emt 0:00:05]} Nf6 {[%emt 0:00:07]} 2. c4 {[%emt 0:00:17]} g6 {[%emt 0:00:34]} 3. Nc3 {[%emt 0:00:08]} Bg7 {[%emt 0:00:06]} 4. e4 {[%emt 0:00:11]} d6 {[%emt 0:00:06]} 5. Be2 {[%emt 0:00:10]} O-O {[%emt 0:00:16]} 6. Be3 {[%emt 0:00:08]} e5 {[%emt 0:01:05]} 7. d5 {[%emt 0:00:20]} a5 {[%emt 0:00:25]} 8. g4 {[%emt 0:00:32]} Na6 {[%emt 0:03:06]} 9. g5 {[%emt 0:02:14]} Ne8 {[%emt 0:00:37]} 10. Bg4 {[%emt 0:14:39]} (10. h4 $14) 10... f5 $15 {[%emt 0:06:24]} 11. gxf6 $1 {[%emt 0:00:16]} Nxf6 {[%emt 0:00:35]} 12. Bxc8 {[%emt 0:00:29]} Rxc8 {[%emt 0:01:45]} 13. Nh3 {[%emt 0:10:58]} h6 {[%emt 0:02:36] Prevents Ng5.} 14. Rg1 {[%emt 0:03:09]} Kh7 {[%emt 0:03:00]} (14... Qd7 $17 15. Rg3 b6) 15. Kd2 {[%emt 0:09:00] [#]} (15. Qf3 $11) 15... c6 $1 $17 {[%emt 0:04:54] Hoping for ...cxd5.} 16. Qf1 {[%emt 0:02:19]} cxd5 {[%emt 0:05:24]} 17. Qg2 {[%emt 0:02:29]} Qe8 {[%emt 0:01:29]} 18. cxd5 {[%emt 0:01:37][%cal Oc3b5]} Nh5 {[%emt 0:11:39]} 19. Qg4 {[%emt 0:05:52]} Nf4 {[%emt 0:08:04]} 20. Rg3 {[%emt 0:02:15]} g5 {[%emt 0:20:23]} (20... b5 $17 {And now ...Nc5 would win.} 21. Rgg1 Nc5 22. Bxc5 Rxc5 23. Nxf4 exf4) 21. Rag1 $1 $11 {[%emt 0:02:09][%cal Oh3g5] Strongly threatening Nxg5+!} Qg6 {[%emt 0:05:46]} (21... Nb4 {[#]} 22. Nxg5+ $1 hxg5 23. Qxg5 $16) 22. Bxf4 {[%emt 0:05:59]} exf4 {[%emt 0:01:03]} 23. Nxf4 {[%emt 0:00:52]} Rxf4 {[%emt 0:03:58]} (23... Bxc3+ 24. Rxc3 Rxf4 25. Qxc8 $18) (23... Qf7 $1 $11 {remains equal.} 24. Ne6 (24. Nd3 Nb4 $17) 24... Qxf2+ 25. Ne2 Qf6) 24. Qxf4 $16 {[%emt 0:01:38]} (24. Qxc8 $6 Rxf2+ 25. Kc1 Qf6 $11) 24... Nc5 {[%emt 0:03:12] Threatens to win with ...Bxc3+.} 25. Qg4 {[%emt 0:12:54]} ({Better is} 25. f3 $16) 25... Bxc3+ $11 {[%emt 0:01:45]} 26. Rxc3 {[%emt 0:03:57]} Nxe4+ {[%emt 0:00:06]} 27. Ke3 {[%emt 0:00:38]} Re8 $2 {[%emt 0:03:16][%mdl 8192]} (27... Rxc3+ $2 28. bxc3 Nxc3 29. Qd7+ Qg7 30. Qf5+ (30. Qxd6 Qf7 $16) 30... Qg6 31. Qd7+ Qg7 32. Qf5+ (32. Qxd6 Qf7 $16) 32... Qg6 33. Qd7+ $18) (27... Nxc3 $11 {and Black is okay.} 28. Qd7+ Qg7 29. Qf5+ Qg6 30. Qd7+ Qg7 31. Qxc8 Qe5+ 32. Kd3 Ne2) 28. Qd7+ $18 {[%emt 0:00:56]} ({Avoid the trap} 28. Rc7+ $2 Kh8 29. Qf3 g4 $19) 28... Kh8 {[%emt 0:03:12]} 29. Rc8 {[%emt 0:00:22]} Nf6+ {[%emt 0:01:16]} 30. Rxe8+ {[%emt 0:00:09]} Qxe8+ {[%emt 0:00:43]} 31. Qxe8+ {[%emt 0:00:08]} Nxe8 {[%emt 0:00:05]} 32. f4 {[%emt 0:04:29]} gxf4+ {[%emt 0:00:34]} 33. Kxf4 {[%emt 0:00:20] Black must now prevent Rg6.} Nf6 {[%emt 0:00:08]} 34. Kf5 {[%emt 0:02:37]} Nxd5 {[%emt 0:00:07]} 35. Ke6 {[%emt 0:00:14]} Ne3 {[%emt 0:00:25]} 36. Kxd6 {[%emt 0:02:00]} Nc4+ {[%emt 0:00:05]} 37. Kc5 {[%emt 0:00:54]} Nxb2 {[%emt 0:00:14]} 38. Kb6 {[%emt 0:02:13]} 1-0

[Event "Reykjavik Open 2022"]
[Site "Reykjavik"]
[Date "2022.04.07"]
[Round "3.50"]
[White "Chapman, Terry P D"]
[Black "Haraldsson, Haraldur"]
[Result "0-1"]
[ECO "E17"]
[WhiteElo "2240"]
[BlackElo "1936"]
[Annotator "TA"]
[PlyCount "94"]
[EventDate "2022.04.06"]
[EventCountry "ISL"]
[SourceTitle "playchess.com"]
[Source "ChessBase"]
[SourceQuality "1"]
[TimeControl "40/5400+30:1800+30"]

{[%evp 18,94,14,12,45,38,74,29,79,68,69,62,122,118,210,222,222,197,292,244,286,290,318,198,204,132,210,179,208,213,289,321,279,288,419,364,364,352,531,518,497,383,376,373,380,373,401,404,400,397,425,0,333,0,382,394,368,214,388,149,133,137,140,-16,-16,-16,0,-8,-18,-118,-80,-602,-595,-588,-556,-29969,-29965,-5933,-4894]} 1. Nf3 {[%emt 0:00:03]} Nf6 {[%emt 0:00:18]} 2. c4 {[%emt 0:00:02]} e6 {[%emt 0:00:45]} 3. g3 {[%emt 0:00:17]} b6 {[%emt 0:01:24]} 4. Bg2 {[%emt 0:00:05]} Bb7 {[%emt 0:00:06]} 5. O-O {[%emt 0:00:11]} Be7 {[%emt 0:02:52]} 6. Nc3 {[%emt 0:00:25]} O-O {[%emt 0:02:08]} 7. Re1 {[%emt 0:00:45]} d5 {[%emt 0:05:35]} 8. cxd5 {[%emt 0:00:19]} exd5 {[%emt 0:04:39]} 9. d4 {[%emt 0:00:17]} Nbd7 {[%emt 0:04:43]} 10. Bf4 {[%emt 0:02:35]} a6 {[%emt 0:03:31] E17: Queen's Indian: 4 g3 Bb7 5 Bg2 Be7.} 11. Rc1 {[%emt 0:01:19]} Re8 {[%emt 0:04:39]} 12. Qc2 {[%emt 0:16:36][%cal Oe2e4] [#]} (12. e4 $5) 12... Bd6 $146 {[%emt 0:08:34]} (12... c5 $11 {keeps the balance.}) ({Predecessor:} 12... Nf8 13. Na4 c6 14. Qb3 b5 15. Nc5 Bxc5 16. Rxc5 {½-½ (53) Bai,J (2591)-Liu,Y (2524) Shanghai 2019}) 13. Bxd6 $16 {[%emt 0:04:45]} cxd6 {[%emt 0:00:06]} 14. Qb3 {[%emt 0:08:46]} (14. Ng5 {keeps more tension.} Rc8 15. Qb3 h6 16. Nh3) 14... Ra7 {[%emt 0:17:07]} (14... b5 $14) 15. Nh4 {[%emt 0:04:05]} Qa8 {[%emt 0:01:47]} (15... g6 $16 {was worth a try.}) 16. Nf5 $18 {[%emt 0:02:05]} Re6 {[%emt 0:00:17]} 17. Ne3 {[%emt 0:01:35]} Qe8 {[%emt 0:01:35]} (17... Rxe3 $142 18. fxe3 b5) 18. Nexd5 {[%emt 0:07:19] [#] And now Nc7 would win.} Nxd5 {[%emt 0:01:44]} 19. Bxd5 {[%emt 0:00:26]} Bxd5 {[%emt 0:00:30]} 20. Qxd5 {[%emt 0:02:15]} Nf6 {[%emt 0:01:05]} 21. Qf3 {[%emt 0:01:30]} b5 {[%emt 0:03:11]} (21... Rc7 $16 {is a better defense.} 22. d5 Ree7) 22. e3 {[%emt 0:08:55]} Qd8 {[%emt 0:07:34]} 23. Nd5 {[%emt 0:16:12]} Ne4 {[%emt 0:00:35]} 24. Re2 {[%emt 0:01:21][%cal Be1e2,Be2c2,Bc2c7][%mdl 32] Rec2 is the strong threat.} g6 {[%emt 0:03:20]} 25. Rec2 {[%emt 0:01:10] Black must now prevent Rc8.} Qg5 {[%emt 0:01:20] [#]} (25... Ng5 $142 26. Qd1 Kg7) 26. Rc7 $1 {[%emt 0:03:52]} Rxc7 {[%emt 0:00:49]} 27. Rxc7 {[%emt 0:00:23]} f5 {[%emt 0:02:34]} (27... Nf6 {was called for.}) 28. Rc8+ {[%emt 0:07:14][%cal Bc7c8,Bc8a8,Ba8a7][%mdl 32]} Kg7 {[%emt 0:00:44]} 29. h4 {[%emt 0:01:48]} Qg4 {[%emt 0:03:10]} 30. Qxg4 {[%emt 0:01:08]} fxg4 {[%emt 0:00:11][%mdl 4096] Endgame KRN-KRN} 31. Ra8 {[%emt 0:02:50]} g5 {[%emt 0:01:48]} 32. hxg5 {[%emt 0:01:00]} Nxg5 {[%emt 0:00:07]} 33. Ra7+ {[%emt 0:00:17]} Kg8 {[%emt 0:00:11]} 34. Ra8+ {[%emt 0:00:13]} Kg7 {[%emt 0:00:18]} 35. Ra7+ {[%emt 0:00:14]} Kg8 $1 {[%emt 0:00:08]} 36. Rxa6 {[%emt 0:00:55]} Rh6 {[%emt 0:00:43]} 37. Kf1 {[%emt 0:03:32]} (37. Rb6 $142) 37... Ne4 $2 {[%emt 0:01:59]} (37... Rh1+ {might work better.} 38. Kg2 Rb1 39. Rxd6 Kf7 40. Rf6+ Kg7) 38. Nf4 $2 {[%emt 0:01:33]} (38. Ra8+ $18 {is more deadly.} Kf7 39. Kg2) 38... Rh1+ $16 {[%emt 0:01:11]} 39. Ke2 {[%emt 0:00:39]} Rh2 {[%emt 0:00:16]} 40. Nd3 $2 {[%emt 0:00:00]} (40. Ra5 $16) 40... Nxg3+ $11 {[%emt 0:00:00]} 41. Ke1 {[%emt 0:07:54]} Ne4 {[%emt 0:01:29]} 42. Rb6 {[%emt 0:04:22]} h5 {[%emt 0:01:00][%cal Bh7h5,Bh5h4,Bh4h3][%mdl 32]} 43. Rxb5 {[%emt 0:08:41]} (43. Kf1 $1 $11 {remains equal.}) 43... h4 $17 {[%emt 0:03:42] &Nero is more active.} 44. Rh5 $2 {[%emt 0:05:32][%mdl 8192] Now White is beyond hope.} (44. Rb8+ $17 Kf7 45. a4) 44... g3 $19 {[%emt 0:04:57][%cal Bg4g3,Bg3f2][%mdl 32] aiming for ...g2.} 45. Kf1 {[%emt 0:03:56]} h3 {[%emt 0:11:55]} 46. Kg1 {[%emt 0:00:34]} Rg2+ {[%emt 0:00:58]} 47. Kf1 {[%emt 0:01:10]} gxf2 {[%emt 0:03:20] Weighted Error Value: White=0.88/Black=0.33} 0-1

[Event "Reykjavik Open 2022"]
[Site "Reykjavik"]
[Date "2022.04.07"]
[Round "3.51"]
[White "Mirza, Diana"]
[Black "Povah, Nigel E"]
[Result "1/2-1/2"]
[ECO "B30"]
[WhiteElo "1898"]
[BlackElo "2245"]
[Annotator "TA"]
[PlyCount "52"]
[EventDate "2022.04.06"]
[EventCountry "ISL"]
[SourceTitle "playchess.com"]
[Source "ChessBase"]
[SourceQuality "1"]
[TimeControl "40/5400+30:1800+30"]

{[%evp 9,52,26,30,32,37,33,22,25,22,24,21,0,0,0,0,0,16,0,25,0,0,-10,0,0,0,0,0,0,0,0,-9,-27,0,0,0,0,13,28,18,20,59,0,0,0,87]} 1. e4 {[%emt 0:00:06]} c5 {[%emt 0:01:06]} 2. Nf3 {[%emt 0:00:37]} Nc6 {[%emt 0:00:28]} 3. Bb5 {[%emt 0:01:48]} Nf6 {[%emt 0:00:13]} 4. Bxc6 {[%emt 0:01:27]} dxc6 {[%emt 0:00:07]} 5. d3 {[%emt 0:00:38]} Bg4 {[%emt 0:00:48][%cal Oc5c4]} 6. h3 {[%emt 0:02:41] B30: Sicilian: 2...Nc6 3 Bb5, lines without ...g6.} Bh5 {[%emt 0:00:10][%cal Oc5c4]} 7. b3 {[%emt 0:01:38]} Qc7 {[%emt 0:07:12]} 8. g4 {[%emt 0:05:48]} Bg6 {[%emt 0:00:11]} 9. Bb2 {[%emt 0:05:41]} Nd7 {[%emt 0:03:27] Against Ne5} 10. e5 {[%emt 0:03:14][%cal Oe5e6]} e6 {[%emt 0:04:12]} 11. Qe2 {[%emt 0:01:13]} Be7 {[%emt 0:01:02]} 12. Nbd2 {[%emt 0:00:31] [#]} Qa5 $146 {[%emt 0:19:14]} ({Predecessor:} 12... h5 13. O-O-O Nb6 14. Ne4 O-O-O 15. c4 Kb8 16. Kb1 Nd7 17. Ka1 f6 18. exf6 gxf6 {1-0 (31) Gavrilescu,D (2479)-Povah,N (2329) Caleta 2019}) 13. a3 {[%emt 0:09:35]} O-O-O {[%emt 0:10:36]} 14. O-O-O {[%emt 0:02:18]} (14. h4 $5 {[%cal Rh4h5]} h5 15. g5 $11) 14... Nb6 {[%emt 0:03:53][%cal Oc5c4]} 15. Ne4 {[%emt 0:06:31]} h5 {[%emt 0:09:53][%cal Oc5c4]} 16. Nfd2 {[%emt 0:05:45][%cal Oe4d6]} hxg4 {[%emt 0:06:38]} 17. hxg4 {[%emt 0:00:50][%cal Oe4d6]} Rxh1 $1 {[%emt 0:03:30]} 18. Rxh1 {[%emt 0:00:06][%cal Oe4d6]} c4 $1 {[%emt 0:04:58]} 19. Nxc4 {[%emt 0:22:34]} Nxc4 {[%emt 0:00:24]} 20. bxc4 {[%emt 0:00:11][%cal Oe4d6]} Bxa3 {[%emt 0:00:37] Strongly threatening ...Qxe5.} (20... Bxe4 $5 21. Qxe4 Bxa3 $11) 21. Nd6+ {[%emt 0:03:34]} Kc7 {[%emt 0:01:01]} 22. Qe1 {[%emt 0:04:42] Against Qc3} Bxb2+ {[%emt 0:07:07]} 23. Kxb2 {[%emt 0:00:06] Dancing on a razor blade.} Qb6+ {[%emt 0:00:21]} 24. Ka2 {[%emt 0:04:24]} Qa6+ {[%emt 0:07:41]} 25. Kb2 {[%emt 0:00:13]} ({Better is} 25. Kb3 $1 $14) 25... Qb6+ $1 $11 {[%emt 0:00:44]} 26. Ka2 {[%emt 0:00:06]} ({White should try} 26. Kc1 $11) 26... Qa6+ {[%emt 0:00:36] Weighted Error Value: White=0.08 (flawless) /Black=0.05 (flawless)} 1/2-1/2

[Event "Reykjavik Open 2022"]
[Site "Reykjavik"]
[Date "2022.04.07"]
[Round "3.52"]
[White "Vemparala, Nikash"]
[Black "Roe, Simon J"]
[Result "0-1"]
[ECO "B03"]
[WhiteElo "1998"]
[BlackElo "2211"]
[Annotator "TA"]
[PlyCount "52"]
[EventDate "2022.04.06"]
[EventCountry "ISL"]
[SourceTitle "playchess.com"]
[Source "ChessBase"]
[SourceQuality "1"]
[TimeControl "40/5400+30:1800+30"]

{[%evp 11,52,28,30,24,29,-18,5,0,23,27,27,19,24,27,34,0,0,-9,-5,-3,-5,-7,-14,-32,0,0,0,-45,-26,-168,-178,-187,-196,-279,-276,-397,-408,-482,-483,-508,-489,-656,-606]} 1. e4 {[%emt 0:00:02][%cal Be2e4,Be4e5][%mdl 32]} Nf6 {[%emt 0:00:06]} 2. e5 {[%emt 0:00:13]} Nd5 {[%emt 0:00:05]} 3. d4 {[%emt 0:00:05]} d6 {[%emt 0:00:05]} 4. c4 {[%emt 0:00:06]} Nb6 {[%emt 0:00:07]} 5. exd6 {[%emt 0:00:06]} exd6 {[%emt 0:00:07]} 6. Be3 {[%emt 0:02:01]} Be7 {[%emt 0:02:15]} 7. Bd3 {[%emt 0:01:50] B03: Alekhine's Defence: Four Pawns Attack.} Nc6 {[%emt 0:02:19]} 8. a3 {[%emt 0:06:16]} (8. Nc3 $142) 8... Bf6 $11 {[%emt 0:03:01]} 9. Ne2 $1 {[%emt 0:02:15] The position is equal.} Bg4 {[%emt 0:01:40][%cal Of6d4]} 10. f3 {[%emt 0:03:01]} Bh5 {[%emt 0:00:55]} 11. O-O {[%emt 0:02:05]} Bg6 {[%emt 0:00:36]} 12. Nbc3 {[%emt 0:01:17]} O-O {[%emt 0:00:38]} 13. Ne4 {[%emt 0:03:19]} d5 {[%emt 0:09:49]} 14. Nxf6+ {[%emt 0:04:13]} Qxf6 {[%emt 0:00:33]} 15. c5 {[%emt 0:02:53]} Nc4 {[%emt 0:23:10]} 16. Bxc4 {[%emt 0:06:14]} dxc4 {[%emt 0:00:08] [#]} 17. Nf4 $146 {[%emt 0:11:42]} ({Predecessor:} 17. Nc3 Rfe8 18. Qd2 Bd3 19. Rfe1 Nxd4 20. Nd5 Qe5 21. Nf4 Nc2 22. Nxd3 cxd3 23. Bf2 Nxe1 24. Rxe1 Qd5 {0-1 (24) Wyszomirski,K (1736)-Matuszewski,M (2308) Warsaw 2010}) 17... Rfe8 {[%emt 0:10:17]} (17... Rad8 $5 {[%cal Rf8e8]} 18. Nxg6 Rfe8 $15) 18. Qd2 {[%emt 0:03:16]} Rad8 {[%emt 0:04:34][%cal Rc6d4]} 19. Nxg6 {[%emt 0:06:01]} Qxg6 {[%emt 0:05:30]} 20. Rfd1 {[%emt 0:02:59] [#] Now White is beyond hope.} (20. Rae1 $11) 20... Ne5 $1 $36 {[%emt 0:05:06][%cal Bc6e5,Be5d3,Bd3c5,Bc5b3][%mdl 2592] And now ...Nxf3+ would win. Keeping White busy.} 21. Kh1 {[%emt 0:03:16]} (21. Kf1 Nd3) 21... Nd3 {[%emt 0:02:29][%cal Od3c5] Inhibits Rac1.} 22. b3 {[%emt 0:05:42]} (22. b4 $142) 22... Nxc5 $1 {[%emt 0:01:48]} 23. Qc3 {[%emt 0:05:39]} (23. bxc4 $142 Nb3 24. Qc3 Nxa1 25. Rxa1) 23... Nxb3 {[%emt 0:00:29]} 24. Rab1 {[%emt 0:00:38]} b5 {[%emt 0:00:52] Black is clearly winning.} 25. Re1 {[%emt 0:04:09]} h6 {[%emt 0:01:58][%cal Oc7c5] White must now prevent ...c5!} 26. h3 {[%emt 0:02:51]} c5 {[%emt 0:07:19] Weighted Error Value: White=0.44/Black=0.05 (flawless)} 0-1